Workbook

Sheet Лист1
A1: Согласовано: | K1: Утверждаю:
A2: Директор МБОУ С(К) Ш №148 | K2: Директор ООО "Аллегро БП"
K3: __________________О.В.Оршулевич
A4: ________________________Л.А.Трофимова | K4: "___________________" 2026г
A5: "___________________________" 2026г
A6: Примерное цикличное десятидневное меню для питания учащихся МБОУ С(К)Ш №148 с 7 до 11 лет
A7: 1-4 класс
A8: №рец. | B8: Наименование блюда | C8: Выход,г | D8: Пищевые вещества,г | G8: Энерг.цен-ть | H8: Витамины,мг | L8: Минеральные вещества,мг
D9: Белки | E9: Жиры | F9: Углев. | H9: В1 | I9: С | J9: А | K9: Е | L9: Са | M9: Р | N9: Mg | O9: Fe
B10: 1 неделя
B11: 1 день 1 неделя
B12: ОВЗ ЗАВТРАК
A13: №213, 2004 | B13: Запеканка из творога с джемом 150/20г (творог 135,5г, крупа манная 9,96г, сахар 14,94г,яйцо 4,15г,сухари панировочные 4,98г, сметана 5,81г, масло сливочное 4,98г, джем20г) | C13: 150/20 | D13: 36.51 | E13: 26.34 | F13: 46.59 | G13: 572.14 | H13: 0.12 | I13: 0.74 | J13: 0.12 | K13: 1.59 | L13: 364.42 | M13: 286.5 | N13: 72.51 | O13: 1.25
A14: №377, 2011 | B14: Чай с сахаром и лимоном 200/15/7г (чай 1г, вода питьевая 200г, сахар 15г, лимон 7г) | C14: 200/15/7 | D14: 0.13 | E14: 0.02 | F14: 15.25 | G14: 62 | H14: 0 | I14: 2.8 | J14: 0 | K14: 0 | L14: 14.2 | M14: 4.4 | N14: 2.4 | O14: 0.36
A15: ПР 2011 | B15: Хлеб пшеничный | C15: 30 | D15: 3.55 | E15: 0.45 | F15: 21.73 | G15: 105.21 | H15: 0.045 | I15: 0 | J15: 0 | K15: 0.58 | L15: 10.35 | M15: 39.15 | N15: 14.85 | O15: 0.49
A16: ПР 2011 | B16: Хлеб ржаной | C16: 30 | D16: 1.12 | E16: 0.22 | F16: 9.88 | G16: 45.98 | H16: 0.04 | I16: 0 | J16: 0 | K16: 0.18 | L16: 4.6 | M16: 21.2 | N16: 5 | O16: 0.62
A17: №338, 2011 | B17: Яблоко 120г | C17: 120 | D17: 0.48 | E17: 0.48 | F17: 11.76 | G17: 56.4 | H17: 0.031 | I17: 12 | J17: 0.01 | K17: 0.24 | L17: 19.2 | M17: 13.2 | N17: 10.8 | O17: 2.64
B18: Всего | D18: =SUM(D13:D17) -> 41.79 | E18: 27.51 | F18: 105.21 | G18: 841.73 | H18: 0.236 | I18: 15.54 | J18: 0.13 | K18: 2.59 | L18: 412.77 | M18: 364.45 | N18: 105.56 | O18: 5.36
B19: ОВЗ ОБЕД
A20: №46, 2011 | B20: Салат Веснушка 60г (капуста белокачанная 27г, кукуруза 9г, яблоки 15г, лук репчатый 3г, сахар 3г, масло растительное 3г) | C20: 60 | D20: 0.12 | E20: 5.1 | F20: 11.17 | G20: 90.1 | H20: 0.03 | I20: 16.87 | J20: 0 | K20: 15.4 | L20: 33.49 | M20: 29.35 | N20: 16 | O20: 0.98
A21: №99, 2011 | B21: Суп из овощей со сметаной 250/10г (капуста белокачанная 25г, картофель 66,75г, морковь 12,5г, лук репчатый 12г, горошек зеленый консю 11,5г, вода питьевая 187,5г, сметана 10г) | C21: 250/ 10 | D21: 2.7 | E21: 3.57 | F21: 11.44 | G21: 104.84 | H21: 0.09 | I21: 18.18 | J21: 0.02 | K21: 0.68 | L21: 26 | M21: 50.33 | N21: 17.69 | O21: 0.8
A22: №243, 2011 | B22: Сосиски отварные со сливочным маслом 100/5г (сосиска молочная 100г, соль йодированная 2г, масло сливочное 5г) | C22: 100/5 | D22: 9.21 | E22: 14.7 | F22: 0.39 | G22: 172.28 | H22: 0 | I22: 0 | J22: 0 | K22: 0.59 | L22: 18.82 | M22: 96.63 | N22: 10.39 | O22: 1.18
A23: №309, 2011 | B23: Макаронные изделия отварные 150г (макаронные изделия 52,5г) | C23: 150 | D23: 5.5 | E23: 6.05 | F23: 39.54 | G23: 234.54 | H23: 0.09 | I23: 0 | J23: 0.04 | K23: 0.65 | L23: 10.94 | M23: 46.96 | N23: 8.6 | O23: 0.65
A24: №349, 2011 | B24: Компот из смеси сухофруктов 200г (груша сушеная 10г, яблоко сушеное 10г, курага 10г, изюм 10г, чернослив 10г, сахар 15г, вода питьевая 100г) | C24: 200 | D24: 1.16 | E24: 0.3 | F24: 47.36 | G24: 196.38 | H24: 0.02 | I24: 0.8 | J24: 0 | K24: 0.2 | L24: 5.84 | M24: 46 | N24: 33 | O24: 0.96
A25: ПР 2011 | B25: Хлеб пшеничный | C25: 30 | D25: 3.55 | E25: 0.45 | F25: 21.73 | G25: 105.21 | H25: 0.045 | I25: 0 | J25: 0 | K25: 0.58 | L25: 10.35 | M25: 39.15 | N25: 14.85 | O25: 0.49
A26: ПР 2011 | B26: Хлеб ржаной | C26: 30 | D26: 1.68 | E26: 0.33 | F26: 14.82 | G26: 68.97 | H26: 0.03 | I26: 0 | J26: 0 | K26: 0.27 | L26: 6.9 | M26: 31.8 | N26: 7.5 | O26: 0.93
B27: Всего | D27: =SUM(D20:D26) -> 23.92 | E27: =SUM(E20:E26) -> 30.5 | F27: =SUM(F20:F26) -> 146.45 | G27: 972.32 | H27: 0.305 | I27: 35.85 | J27: 0.06 | K27: 18.37 | L27: 112.34 | M27: 340.22 | N27: 108.03 | O27: 5.99
B28: Итого за день | D28: =D27+D18 -> 65.71 | E28: =E27+E18 -> 58.01 | F28: 251.66 | G28: 1814.05 | H28: 0.541 | I28: 51.39 | J28: 0.19 | K28: 20.96 | L28: 525.11 | M28: 704.67 | N28: 213.59 | O28: 11.35
B29: 2 день 1 неделя
B30: ОВЗ ЗАВТРАК
A31: №440, 2015 | B31: Булочка Пышка 70г (мука пшеничная в/с 68,6г, сахар 5г, масло растительное 3,7г, яйцо 5,6г, дрожжи прессованные 1,3г, соль йодированная 0,5г) | C31: 70 | D31: 9.05 | E31: 6.22 | F31: 30.1 | G31: 212.61 | H31: 0.09 | I31: 0.15 | J31: 0.02 | K31: 2.28 | L31: 55.53 | M31: 109, 68 | N31: 14.54 | O31: 0.77
A32: №173, 2011 | B32: Каша геркулесовая молочная с маслом 200/10г (геркулес 44г, молоко 100г, вода питьевая 60г, сахар 6г, масло сливочное 10г) | C32: 200/10 | D32: 6.1 | E32: 4 | F32: 36.95 | G32: 208.24 | H32: 0.22 | I32: 2.08 | J32: 32 | K32: 0.86 | L32: 221.6 | M32: 315.4 | N32: 79.5 | O32: 1.31
A33: №376, 2011 | B33: Чай с сахаром 200/15 (чай 1г, вода питьевая 200г, сахар 15г) | C33: 200 | D33: 0.53 | E33: 0 | F33: 9.47 | G33: 40 | H33: 0 | I33: 0.27 | J33: 0 | K33: 0 | L33: 13.6 | M33: 22.13 | N33: 11.73 | O33: 2.13
A34: ПР 2011 | B34: Хлеб ржано-пшеничный, 30г | C34: 30 | D34: 1.68 | E34: 0.33 | F34: 14.82 | G34: 68.97 | H34: 0.03 | I34: 0 | J34: 0 | K34: 0.27 | L34: 6.9 | M34: 31.8 | N34: 7.5 | O34: 0.93
B35: Всего | D35: =SUM(D31:D34) -> 17.36 | E35: 10.55 | F35: 91.34 | G35: 529.82 | H35: 0.34 | I35: 2.5 | J35: 32.02 | K35: 3.41 | L35: 297.63 | M35: 369.33 | N35: 113.27 | O35: 5.14
B36: ОВЗ ОБЕД
A37: №67, 2011 | B37: Винегрет овощной 60г (картофель 13г, свекла 9,5г, морковь 6г, огурцы соленые 18г, лук репчатый 9г, масло растительное 6г, соль поваренная пищевая йодир. 0,5г) | C37: 60 | D37: 0.97 | E37: 3.72 | F37: 5.34 | G37: 58.72 | H37: 0.06 | I37: 7.8 | J37: 0 | K37: 1.77 | L37: 24.24 | M37: 29.28 | N37: 14.04 | O37: 0.61
A38: №103, 2011 | B38: Суп картофельный с макаронными изделиями 250г (картофель 100г, морковь 12,5г, лук репчатый 12г, макаронные изделия 10г, масло растительное 2,5г, соль йодированная 2,5г, лавровый лист 0,01г) | C38: 250 | D38: 2.73 | E38: 2.8 | F38: 20.45 | G38: 117.9 | H38: 0.15 | I38: 8.25 | J38: 0 | K38: 1.23 | L38: 15.2 | M38: 64.55 | N38: 24.05 | O38: 0.98
B39: Бигус с курицей 150/90 | C39: 150/90
A40: №389, 2011 | B40: Сок натуральный яблочный, 200г | C40: 200 | D40: 1 | E40: 0.2 | F40: 22 | G40: 86.6 | H40: 0.02 | I40: 4 | J40: 0 | K40: 0.2 | L40: 14 | M40: 14 | N40: 8 | O40: 2.8
A41: ПР 2011 | B41: Хлеб пшеничный | C41: 30 | D41: 3.55 | E41: 0.45 | F41: 21.73 | G41: 105.21 | H41: 0.045 | I41: 0 | J41: 0 | K41: 0.58 | L41: 10.35 | M41: 39.15 | N41: 14.85 | O41: 0.49
A42: ПР 2011 | B42: Хлеб ржаной | C42: 30 | D42: 1.68 | E42: 0.33 | F42: 14.82 | G42: 68.97 | H42: 0.03 | I42: 0 | J42: 0 | K42: 0.27 | L42: 6.9 | M42: 31.8 | N42: 7.5 | O42: 0.93
B43: Всего | D43: =SUM(D37:D42) -> 9.93 | E43: 7.5 | F43: 84.34 | G43: 437.4 | H43: 0.305 | I43: 20.05 | J43: 0 | K43: 4.05 | L43: 70.69 | M43: 178.78 | N43: 68.44 | O43: 5.81
B44: Итого за день | D44: =D43+D35 -> 27.29 | E44: 18.05 | F44: 175.68 | G44: 967.22 | H44: 0.645 | I44: 22.55 | J44: 32.02 | K44: 7.46 | L44: 368.32 | M44: 548.11 | N44: 181.71 | O44: 10.95
B45: 3 день 1 неделя
B46: ОВЗ ЗАВТРАК
A47: №2, 2011 | B47: Бутерброд с повидлом и маслом на пшеничном хлебе 30/20/10г (хлеб пшеничный 30г, повидло 20,2г, масло сливочное 5г) | C47: 30/20/ 5 | D47: 2.4 | E47: 3.87 | F47: 27.83 | G47: 156 | H47: 0.04 | I47: 0.1 | J47: 20 | K47: 0.39 | L47: 10 | M47: 22.8 | N47: 5.6 | O47: 0.6
A48: №173, 2011 | B48: Каша пшеничная молочная вязкая с маслом 230/10г (крупа пшеничная 50г, молоко 100г, вода 60г, соль йодированная 0,7г, сахар 6г, масло сливочное 10г) | C48: 200/10 | D48: 8.64 | E48: 11.05 | F48: 44.26 | G48: 312 | H48: 0.14 | I48: 0.96 | J48: 54.8 | K48: 0.76 | L48: 146.77 | M48: 221.3 | N48: 44.33 | O48: 2.34
A49: №378, 2011 | B49: Чай с сахаром и молоком 150/15/50г (чай 1г, вода 134г, сахар 15г, молоко 50г) | C49: 150/15/50 | D49: 1.52 | E49: 1.35 | F49: 15.9 | G49: 81 | H49: 0.04 | I49: 1.33 | J49: 10 | K49: 0 | L49: 126.6 | M49: 92.8 | N49: 15.4 | O49: 0.41
A50: ПР 2011 | B50: Хлеб ржаной | C50: 30 | D50: 1.12 | E50: 0.22 | F50: 9.88 | G50: 45.98 | H50: 0.04 | I50: 0 | J50: 0 | K50: 0.18 | L50: 4.6 | M50: 21.2 | N50: 5 | O50: 0.62
B52: Всего | D52: =SUM(D47:D51) -> 13.68 | E52: =SUM(E47:E51) -> 16.49 | F52: 97.87 | G52: 594.98 | H52: 0.26 | I52: 2.39 | J52: 84.8 | K52: 1.33 | L52: 287.97 | M52: 358.1 | N52: 70.33 | O52: 3.97
B53: ОВЗ ОБЕД
A54: №46, 2011 | B54: Салат Синьор-помидор 60г (капуста белокачанная 27г, томаты 9г, яблоки 15г, лук репчатый 3г, сахар 3г, масло растительное 3г) | C54: 60 | D54: 0.12 | E54: 5.1 | F54: 11.17 | G54: 90.1 | H54: 0.03 | I54: 16.87 | J54: 0 | K54: 15.4 | L54: 33.49 | M54: 29.35 | N54: 16 | O54: 0.98
A55: №96, 2011 | B55: Рассольник Ленинградский со сметаной 250/10г (картофель 100г, лук репчатый 6г, крупа перловая 5г, морковь 12,5г, огурцы соленые 16,75г, масло растительное 5г, вода питьевая 187,5г, сметана 10г) | C55: 250/10 | D55: 2.47 | E55: 6.2 | F55: 15.97 | G55: 129.8 | H55: 0.15 | I55: 14.3 | J55: 0 | K55: 2.43 | L55: 16.55 | M55: 34.95 | N55: 28 | O55: 1.03
A56: №295, 2011 | B56: Биточки рубленые из птицы с маслом 90/5г (куриные окорочка 118,8г, хлеб пшеничный 14,4г,вода питьевая 21,6г, внутренний жир 3,6г, сухари панировочные 9г, масло растительное 5,4г, масло сливочное 5г) | C56: 90/5 | D56: 14.13 | E56: 15.4 | F56: 12.73 | G56: 238.5 | H56: 0.07 | I56: 0.18 | J56: 54 | K56: 0.43 | L56: 41.76 | M56: 80.2 | N56: 23.4 | O56: 61.13
A57: №304, 2011 | B57: Рис отварной 150г (рис 51,8г, масло сливочное 6,8г, соль пищевая йодированная 1,5г) | C57: 150 | D57: 3.68 | E57: 5.45 | F57: 37.07 | G57: 212.05 | H57: 0.04 | I57: 0 | J57: 0.03 | K57: 0.3 | L57: 16.19 | M57: 80.87 | N57: 27.35 | O57: 0.58
A58: №389, 2011 | B58: Сок натуральный яблочный, 200г | C58: 200 | D58: 1 | E58: 0.2 | F58: 22 | G58: 86.6 | H58: 0.02 | I58: 4 | J58: 0 | K58: 0.2 | L58: 14 | M58: 14 | N58: 8 | O58: 2.8
A59: ПР 2011 | B59: Хлеб пшеничный | C59: 30 | D59: 3.95 | E59: 0.5 | F59: 24.15 | G59: 116.9 | H59: 0.05 | I59: 0 | J59: 0 | K59: 0.65 | L59: 11.5 | M59: 43.5 | N59: 16.5 | O59: 0.55
A60: ПР 2011 | B60: Хлеб ржаной | C60: 30 | D60: 1.12 | E60: 0.22 | F60: 9.88 | G60: 45.98 | H60: 0.04 | I60: 0 | J60: 0 | K60: 0.18 | L60: 4.6 | M60: 21.2 | N60: 5 | O60: 0.62
B61: Всего | D61: =SUM(D54:D60) -> 26.47 | E61: =SUM(E54:E60) -> 33.07 | F61: 132.97 | G61: 919.93 | H61: 0.4 | I61: 35.35 | J61: 54.03 | K61: 19.59 | L61: 138.09 | M61: 304.07 | N61: 124.25 | O61: 67.69
B62: Итого за день | D62: =D61+D52 -> 40.15 | E62: =E61+E52 -> 49.56 | F62: 230.84 | G62: 1514.91 | H62: 0.66 | I62: 37.74 | J62: 138.83 | K62: 20.92 | L62: 426.06 | M62: 662.17 | N62: 194.58 | O62: 71.66
B63: 4 день 1 неделя
B64: ОВЗ ЗАВТРАК
A65: №3, 2011 | B65: Бутеброд с сыром и маслом на пшеничном хлебе 30/20/10г (хлеб пшеничный 30г, сыр Российский 20г, масло сливочное 5г) | C65: 30/20/ 5 | D65: 6.3 | E65: 9.13 | F65: 16.31 | G65: 172.7 | H65: 0.04 | I65: 0.11 | J65: 59 | K65: 0.47 | L65: 139.2 | M65: 96 | N65: 9.45 | O65: 0.49
A66: №174, 2011 | B66: Каша рисовая молочная вязкая с маслом сливочным 200/10 (крупа рисовая 44г, молоко 100г, вода 65г, сахар 6г, соль йодированнная 0,5г, масло сливочное 10г) | C66: 200/10 | D66: 6 | E66: 10.85 | F66: 52.93 | G66: 334 | H66: 0.06 | I66: 0.96 | J66: 54.8 | K66: 0.23 | L66: 130.97 | M66: 157.44 | N66: 36.46 | O66: 0.53
A67: №376, 2011 | B67: Чай с сахаром 200/15г (чай 1г, вода питьевая 200г, сахар 15г) | C67: 200 | D67: 0.53 | E67: 0 | F67: 9.47 | G67: 40 | H67: 0 | I67: 0.27 | J67: 0 | K67: 0 | L67: 13.6 | M67: 22.13 | N67: 11.73 | O67: 2.13
A68: ПР 2011 | B68: Хлеб ржаной | C68: 30 | D68: 1.68 | E68: 0.33 | F68: 14.82 | G68: 68.97 | H68: 0.03 | I68: 0 | J68: 0 | K68: 0.27 | L68: 6.9 | M68: 31.8 | N68: 7.5 | O68: 0.93
B70: Всего | D70: =SUM(D65:D69) -> 14.51 | E70: =SUM(E65:E69) -> 20.31 | F70: 93.53 | G70: 615.67 | H70: 0.13 | I70: 1.34 | J70: 113.8 | K70: 0.97 | L70: 290.67 | M70: 307.37 | N70: 65.14 | O70: 4.08
B71: ОВЗ ОБЕД
A72: №54, 2011 | B72: Салат из свеклы с яблоком 60г (свекла отварная 48г, яблоко 8г, масло растительное 4г, соль поваренная пищевая йодированная 0,8г) | C72: 60 | D72: 1.72 | E72: 8.46 | F72: 7.54 | G72: 113.1 | H72: 0.02 | I72: 6.88 | J72: 0.02 | K72: 0.15 | L72: 28.08 | M72: 37.76 | N72: 31.64 | O72: 1.07
A73: №101, 2013 | B73: Суп картофельный с крупой (гречка) 250г (картофель 75г, морковь 10г, лук репчатый 10г, крупа гречневая 5г, масло растительное 3г, соль йодированная 2,5г, зелень сушеная 0,15г, лавровый лист 0,01г) | C73: 250 | D73: 2.39 | E73: 3.48 | F73: 17.26 | G73: 109.92 | H73: 0.12 | I73: 16.69 | J73: 0.23 | K73: 1.48 | L73: 36.59 | M73: 68.99 | N73: 29.66 | O73: 1.07
A74: №227, 2011 | B74: Рыба припущеная (филе минтая 74г, лук репчатый 3г, коренья (петрушка или сельдерей)3г, соль 2г, масло сливочное 5г) | C74: 50/5 | D74: 8.56 | E74: 4.11 | F74: 0.46 | G74: 73 | H74: 0.06 | I74: 0.42 | J74: 24.5 | K74: 0.24 | L74: 7.73 | M74: 97.84 | N74: 22.92 | O74: 0.45
A75: №312, 2011 | B75: Пюре картофельное 150г (картофель 171г, молоко 23,7г, масло сливочное 5,25г, соль пищевая йодированная 1,5г) | C75: 150 | D75: 3.08 | E75: 2.33 | F75: 19.13 | G75: 109.73 | H75: 1.16 | I75: 3.75 | J75: 33.15 | K75: 0.15 | L75: 38.25 | M75: 76.95 | N75: 26.7 | O75: 0.86
A76: №349, 2011 | B76: Компот из смеси сухофруктов 200г (груша сушеная 10г, яблоко сушеное 10г, курага 10г, изюм 10г, чернослив 10г, сахар 15г, вода питьевая 100г) | C76: 200 | D76: 1.16 | E76: 0.3 | F76: 47.36 | G76: 196.38 | H76: 0.02 | I76: 0.8 | J76: 0 | K76: 0.2 | L76: 5.84 | M76: 46 | N76: 33 | O76: 0.96
A77: ПР 2011 | B77: Хлеб пшеничный | C77: 30 | D77: 3.55 | E77: 0.45 | F77: 21.73 | G77: 105.21 | H77: 0.045 | I77: 0 | J77: 0 | K77: 0.58 | L77: 10.35 | M77: 39.15 | N77: 14.85 | O77: 0.49
A78: ПР 2011 | B78: Хлеб ржаной | C78: 30 | D78: 1.68 | E78: 0.33 | F78: 14.82 | G78: 68.97 | H78: 0.03 | I78: 0 | J78: 0 | K78: 0.27 | L78: 6.9 | M78: 31.8 | N78: 7.5 | O78: 0.93
B79: Всего | D79: =SUM(D72:D78) -> 22.14 | E79: 19.46 | F79: 128.3 | G79: 776.31 | H79: 1.455 | I79: 28.54 | J79: 57.9 | K79: 3.07 | L79: 133.74 | M79: 398.49 | N79: 166.27 | O79: 5.83
B80: Итого за день | D80: =D79+D70 -> 36.65 | E80: =E79+E70 -> 39.77 | F80: 221.83 | G80: 1391.98 | H80: 1.585 | I80: 29.88 | J80: 171.7 | K80: 4.04 | L80: 424.41 | M80: 705.86 | N80: 231.41 | O80: 9.91
B81: 5 день 1 неделя
B82: ОВЗ ЗАВТРАК
A83: №440, 2015 | B83: Крендель сахарный 60г (мука пшеничная в/с 68,6г, сахар 5г, масло растительное 3,7г, яйцо 5,6г, дрожжи прессованные 1,3г, соль йодированная 0,5г) | C83: 60 | D83: 9.05 | E83: 6.22 | F83: 30.1 | G83: 212.61 | H83: 0.09 | I83: 0.15 | J83: 0.02 | K83: 2.28 | L83: 55.53 | M83: 109, 68 | N83: 14.54 | O83: 0.77
A84: №173, 2011 | B84: Каша вязкая молочная пшенная 200/10г (крупа пшенная 50г, молоко 100г, вода питьевая 60г, сахар 6г, масло сливочное 10г) | C84: 200/10 | D84: 8.64 | E84: 11.06 | F84: 44.32 | G84: 312 | H84: 0.14 | I84: 0.96 | J84: 54.8 | K84: 0.77 | L84: 146.77 | M84: 221.3 | N84: 44.33 | O84: 2.34
A85: №378, 2011 | B85: Чай с сахаром и молоком 150/15/50г (чай 1г, вода 134г, сахар 15г, молоко 50г) | C85: 150/15/50 | D85: 1.52 | E85: 1.35 | F85: 15.9 | G85: 81 | H85: 0.04 | I85: 1.33 | J85: 10 | K85: 0 | L85: 126.6 | M85: 92.8 | N85: 15.4 | O85: 0.41
A86: ПР 2011 | B86: Хлеб ржаной | C86: 30 | D86: 1.12 | E86: 0.22 | F86: 9.88 | G86: 45.98 | H86: 0.04 | I86: 0 | J86: 0 | K86: 0.18 | L86: 4.6 | M86: 21.2 | N86: 5 | O86: 0.62
B87: Всего | D87: =SUM(D83:D86) -> 20.33 | E87: 18.85 | F87: 100.2 | G87: 651.59 | H87: 0.31 | I87: 2.44 | J87: 64.82 | K87: 3.23 | L87: 333.5 | M87: 335.3 | N87: 79.27 | O87: 4.14
B88: ОВЗ ОБЕД
A89: №46, 2011 | B89: Салат Весёлая мозаика 60г (капуста белокочанная 27г, морковь 9г, огурец свежий 15г, лук репчатый 3г, сахар 3г, масло растительное 3г, соль поваренная пищевая иодир. 0,8г) | C89: 60 | D89: 1.72 | E89: 8.46 | F89: 7.54 | G89: 113.1 | H89: 0.02 | I89: 6.88 | J89: 0.02 | K89: 0.15 | L89: 28.08 | M89: 37.76 | N89: 31.64 | O89: 1.07
A90: №82, 2011 | B90: Борщ с капустой и картофелем со сметаной 250/10г (свекла 50г, капуста белокачанная 25г, картофель 26,5г, морковь 12,5г, лук репчатый 12г, томатное пюре 7,5г, масло растительное 5г, соль йодированная 2,5г, сахар 2,5г, лавровый лист 0,01г, сметана 10г) | C90: 250/ 10 | D90: 2.07 | E90: 5.92 | F90: 20.47 | G90: 115.9 | H90: 0.05 | I90: 10.67 | J90: 0 | K90: 2.4 | L90: 49.72 | M90: 54.6 | N90: 26.12 | O90: 1.22
A91: №291 2011 | B91: Плов из птицы 150/90г (рис 44г,морковь 10г, лук репчатый 10г, томатное пюре 7,5г, филе куриное 112г , масло растительное 4,8г, соль йодированная 0,8г, ) | C91: 150/90 | D91: 16.45 | E91: 15.45 | F91: 20.84 | G91: 288 | H91: 0.09 | I91: 15.5 | J91: 18.9 | K91: 2.66 | L91: 49.8 | M91: 143.58 | N91: 90.98 | O91: 2.52
A92: №342, 2004 | B92: Компот из вишни 200г (вишня свежезамороженая 20,6г, сахар 12г, вода питьевая 170г) | C92: 200 | D92: 0.21 | E92: 0.13 | F92: 26.86 | G92: 109.47 | H92: 0.01 | I92: 28 | J92: 0.02 | K92: 0.09 | L92: 8.96 | M92: 0 | N92: 5.83 | O92: 0.7
A93: ПР 2011 | B93: Хлеб пшеничный | C93: 30 | D93: 3.95 | E93: 0.5 | F93: 24.15 | G93: 116.9 | H93: 0.05 | I93: 0 | J93: 0 | K93: 0.65 | L93: 11.5 | M93: 43.5 | N93: 16.5 | O93: 0.55
A94: ПР 2011 | B94: Хлеб ржаной | C94: 30 | D94: 1.68 | E94: 0.33 | F94: 14.82 | G94: 68.97 | H94: 0.03 | I94: 0 | J94: 0 | K94: 0.27 | L94: 6.9 | M94: 31.8 | N94: 7.5 | O94: 0.93
B95: Всего | D95: =SUM(D89:D94) -> 26.08 | E95: =SUM(E89:E94) -> 30.79 | F95: 114.68 | G95: 812.34 | H95: 0.25 | I95: 61.05 | J95: 18.94 | K95: 6.22 | L95: 154.96 | M95: 311.24 | N95: 178.57 | O95: 6.99
B96: Итого за день | D96: =D95+D87 -> 46.41 | E96: =E95+E87 -> 49.64 | F96: 214.88 | G96: 1463.93 | H96: 0.56 | I96: 63.49 | J96: 83.76 | K96: 9.45 | L96: 488.46 | M96: 646.54 | N96: 257.84 | O96: 11.13
B97: 2 неделя
B98: 1 день 2 неделя
B99: ОВЗ ЗАВТРАК
A100: №108, 2011 | B100: Каша манная молочная с маслом 200/1 (крупа манная 31г, молоко коровье 105г, вода питьевая 71г, сахар 5 г, масло сливочное 10г) | C100: 200/10 | D100: 6.94 | E100: 11.72 | F100: 33.68 | G100: 267.93 | H100: 0.12 | I100: 0.82 | J100: 0.52 | K100: 1.59 | L100: 138.52 | M100: 286.5 | N100: 25.07 | O100: 1.25
A101: №209, 2011 | B101: Яйцо отварное | C101: 40 | D101: 5.08 | E101: 4.6 | F101: 0.28 | G101: 63 | H101: 0.03 | I101: 0 | J101: 100 | K101: 0.24 | L101: 22 | M101: 76.8 | N101: 4.8 | O101: 1
A102: №376, 2011 | B102: Чай с сахаром 200/15г (чай 1г, вода питьевая 200г, сахар 15г) | C102: 200 | D102: 0.53 | E102: 0 | F102: 9.47 | G102: 40 | H102: 0 | I102: 0.27 | J102: 0 | K102: 0 | L102: 13.6 | M102: 22.13 | N102: 11.73 | O102: 2.13
A103: ПР 2011 | B103: Хлеб пшеничный | C103: 30 | D103: 1.12 | E103: 0.22 | F103: 9.88 | G103: 45.98 | H103: 0.04 | I103: 0 | J103: 0 | K103: 0.18 | L103: 4.6 | M103: 21.2 | N103: 5 | O103: 0.62
A104: ПР 2011 | B104: Хлеб ржаной | C104: 30 | D104: 2.28 | E104: 0.27 | F104: 14.91 | G104: 71.19 | H104: 0.05 | I104: 0 | J104: 0 | K104: 0.46 | L104: 7.8 | M104: 24.9 | N104: 10.5 | O104: 0.48
A105: №112, 2013 | B105: Мандарины 100г | C105: 100 | D105: 0.96 | E105: 0.21 | F105: 50 | G105: 129 | H105: 0.5 | I105: 26 | J105: 0.02 | K105: 5.4 | L105: 99.7 | M105: 188 | N105: 41 | O105: 6.5
B106: Всего | D106: 41.4 | E106: 27.04 | F106: 130.85 | G106: 858.31 | H106: =SUM(H100:H104) -> 0.24 | I106: 1.09 | J106: 100.52 | K106: 2.47 | L106: 186.52 | M106: 431.53 | N106: 57.1 | O106: 5.48
B107: ОВЗ ОБЕД
A108: №46, 2011 | B108: Салат Веснушка 60г (капуста белокачанная 27г, кукуруза 9г, яблоки 15г, лук репчатый 3г, сахар 3г, масло растительное 3г) | C108: 60 | D108: 0.12 | E108: 5.1 | F108: 11.17 | G108: 90.1 | H108: 0.03 | I108: 16.87 | J108: 0 | K108: 15.4 | L108: 33.49 | M108: 29.35 | N108: 16 | O108: 0.98
A109: №99, 2011 | B109: Суп из овощей со сметаной 250/10г (капуста белокачанная 25г, картофель 66,75г, морковь 12,5г, лук репчатый 12г, горошек зеленый консю 11,5г, вода питьевая 187,5г, сметана 10г) | C109: 250/ 10 | D109: 2.7 | E109: 3.57 | F109: 11.44 | G109: 104.84 | H109: 0.09 | I109: 18.18 | J109: 0.02 | K109: 0.68 | L109: 26 | M109: 50.33 | N109: 17.69 | O109: 0.8
A110: №243, 2011 | B110: Сосиски отварные со сливочным маслом 100/5г (сосиска молочная 100г, соль йодированная 2г, масло сливочное 5г) | C110: 100/5 | D110: 9.21 | E110: 14.7 | F110: 0.39 | G110: 172.28 | H110: 0 | I110: 0 | J110: 0 | K110: 0.59 | L110: 18.82 | M110: 96.63 | N110: 10.39 | O110: 1.18
A111: №309, 2011 | B111: Макаронные изделия отварные 150г (макаронные изделия 52,5г) | C111: 150 | D111: 5.1 | E111: 7.5 | F111: 28.5 | G111: 201.9 | H111: 0.06 | I111: 0 | J111: 0 | K111: 1.96 | L111: 12 | M111: 34.5 | N111: 7.5 | O111: 0.75
A112: №349, 2011 | B112: Компот из смеси сухофруктов 200г (груша сушеная 10г, яблоко сушеное 10г, курага 10г, изюм 10г, чернослив 10г, сахар 15г, вода питьевая 100г) | C112: 200 | D112: 1.16 | E112: 0.3 | F112: 47.36 | G112: 196.38 | H112: 0.02 | I112: 0.8 | J112: 0 | K112: 0.2 | L112: 5.84 | M112: 46 | N112: 33 | O112: 0.96
A113: ПР 2011 | B113: Хлеб пшеничный | C113: 30 | D113: 3.95 | E113: 0.5 | F113: 24.15 | G113: 116.9 | H113: 0.05 | I113: 0 | J113: 0 | K113: 0.65 | L113: 11.5 | M113: 43.5 | N113: 16.5 | O113: 0.55
A114: ПР 2011 | B114: Хлеб ржаной | C114: 30 | D114: 1.68 | E114: 0.33 | F114: 14.82 | G114: 68.97 | H114: 0.03 | I114: 0 | J114: 0 | K114: 0.27 | L114: 6.9 | M114: 31.8 | N114: 7.5 | O114: 0.93
B115: Всего | D115: =SUM(D108:D114) -> 23.92 | E115: =SUM(E108:E114) -> 32 | F115: 137.83 | G115: 951.37 | H115: 0.28 | I115: 35.85 | J115: 0.02 | K115: 19.75 | L115: 114.55 | M115: 332.11 | N115: 108.58 | O115: 6.15
B116: Итого за день | D116: =D115+D106 -> 65.32 | E116: =E115+E106 -> 59.04 | F116: 268.68 | G116: 1809.68 | H116: 0.52 | I116: 36.94 | J116: 100.54 | K116: 22.22 | L116: 301.07 | M116: 763.64 | N116: 165.68 | O116: 11.63
B117: 2 день 2 неделя
B118: ОВЗ ЗАВТРАК
A119: №425, 2011 | B119: Булочка Дорожная 70г (мука пшеничная в/с 38,6г, сахар 2,7г, масло растительное 3,7г, яйцо 5,6г, дрожжи прессованные 1,3г, соль йодированная 0,5г) | C119: 70 | D119: 9.05 | E119: 6.22 | F119: 30.1 | G119: 212.61 | H119: 0.09 | I119: 0.15 | J119: 0.02 | K119: 2.28 | L119: 55.53 | M119: 109, 68 | N119: 14.54 | O119: 0.77
A120: №173, 2011 | B120: Каша геркулесовая молочная с маслом 200/10г (геркулес 44г, молоко 100г, вода питьевая 60г, сахар 6г, масло сливочное 10г) | C120: 200/10 | D120: 6.1 | E120: 4 | F120: 36.95 | G120: 208.24 | H120: 0.22 | I120: 2.08 | J120: 32 | K120: 0.86 | L120: 221.6 | M120: 315.4 | N120: 79.5 | O120: 1.31
A121: №376, 2011 | B121: Чай с сахаром 200/15 (чай 1г, вода питьевая 200г, сахар 15г) | C121: 200 | D121: 0.53 | E121: 0 | F121: 9.47 | G121: 40 | H121: 0 | I121: 0.27 | J121: 0 | K121: 0 | L121: 13.6 | M121: 22.13 | N121: 11.73 | O121: 2.13
A122: ПР 2011 | B122: Хлеб пшеничный | C122: 30 | D122: 3.55 | E122: 0.45 | F122: 21.73 | G122: 105.21 | H122: 0.045 | I122: 0 | J122: 0 | K122: 0.58 | L122: 10.35 | M122: 39.15 | N122: 14.85 | O122: 0.49
A123: ПР 2011 | B123: Хлеб ржаной | C123: 30 | D123: 1.12 | E123: 0.22 | F123: 9.88 | G123: 45.98 | H123: 0.04 | I123: 0 | J123: 0 | K123: 0.18 | L123: 4.6 | M123: 21.2 | N123: 5 | O123: 0.62
B124: Всего | D124: =SUM(D119:D123) -> 20.35 | E124: 10.89 | F124: 108.13 | G124: 612.04 | H124: 0.395 | I124: 2.5 | J124: 32.02 | K124: 3.9 | L124: 305.68 | M124: 397.88 | N124: 125.62 | O124: 5.32
B125: ОВЗ ОБЕД
A126: №67, 2011 | B126: Винегрет овощной 60г (картофель 13г, свекла 9,5г, морковь 6г, огурцы соленые 18г, лук репчатый 9г, масло растительное 6г, соль поваренная пищевая йодир. 0,5г) | C126: 60 | D126: 0.97 | E126: 3.72 | F126: 5.34 | G126: 58.72 | H126: 0.06 | I126: 7.8 | J126: 0 | K126: 1.77 | L126: 24.24 | M126: 29.28 | N126: 14.04 | O126: 0.61
A127: №102, 2011 | B127: Суп картофельный с бобовыми 250г (картофель 66,75г, горох 20г, лук репчатый 12г, морковь 12,5г, масло растительное 5г, петрушка 2,4) | C127: 250 | D127: 5.49 | E127: 5.27 | F127: 16.53 | G127: 148.25 | H127: 0.22 | I127: 5.82 | J127: 0 | K127: 2.42 | L127: 42.67 | M127: 88.1 | N127: 35.57 | O127: 2.05
A128: №279, 2011, | B128: Тефтели мясные с рисом, маслом сливочным 90/5г (говядина 39г, свинина 24г, рис 7,5г, масло сливочное 4,5г, вода питьевая 9г, масло сливочное 5г) | C128: 90/5 | D128: 10.47 | E128: 24.18 | F128: 14.08 | G128: 334 | H128: 0.28 | I128: 1.83 | J128: 24.33 | K128: 3.09 | L128: 33.31 | M128: 128.02 | N128: 25.94 | O128: 122.2
A129: №171,2011 | B129: Каша гречневая рассыпчатая 150г (гречневая крупа 71г, вода питьевая 105г, масло сливочное 6г, соль пищевая йодированная 1г) | C129: 150 | D129: 8.85 | E129: 9.55 | F129: 39.86 | G129: 280 | H129: 0.21 | I129: 0 | J129: 0 | K129: 0 | L129: 26.39 | M129: 210.35 | N129: 140.52 | O129: 4.73
A130: №389, 2011 | B130: Сок натуральный яблочный, 200г | C130: 200 | D130: 1 | E130: 0.2 | F130: 22 | G130: 86.6 | H130: 0.02 | I130: 4 | J130: 0 | K130: 0.2 | L130: 14 | M130: 14 | N130: 8 | O130: 2.8
A131: ПР 2011 | B131: Хлеб пшеничный | C131: 30 | D131: 3.16 | E131: 0.4 | F131: 19.32 | G131: 93.52 | H131: 0.04 | I131: 0 | J131: 0 | K131: 0.52 | L131: 9.2 | M131: 34.8 | N131: 13.2 | O131: 0.44
A132: ПР 2011 | B132: Хлеб ржаной | C132: 30 | D132: 1.68 | E132: 0.33 | F132: 14.82 | G132: 68.97 | H132: 0.03 | I132: 0 | J132: 0 | K132: 0.27 | L132: 6.9 | M132: 31.8 | N132: 7.5 | O132: 0.93
B133: Всего | D133: =SUM(D126:D132) -> 31.62 | E133: 43.65 | F133: 131.95 | G133: 1070.06 | H133: 0.86 | I133: 19.45 | J133: 24.33 | K133: 8.27 | L133: 156.71 | M133: 536.35 | N133: 244.77 | O133: 133.76
B134: Итого за день | D134: =D133+D124 -> 51.97 | E134: =E133+E124 -> 54.54 | F134: 240.08 | G134: 1682.1 | H134: 1.255 | I134: 21.95 | J134: 56.35 | K134: 12.17 | L134: 462.39 | M134: 934.23 | N134: 370.39 | O134: 139.08
B135: 3 день 2 неделя
B136: ОВЗ ЗАВТРАК
A137: №2, 2011 | B137: Бутерброд с повидлом и маслом на пшеничном хлебе 30/20/5г (хлеб пшеничный 30г, повидло 20,2г, масло сливочное 5г) | C137: 30/20/ 5 | D137: 2.4 | E137: 3.87 | F137: 27.83 | G137: 156 | H137: 0.04 | I137: 0.1 | J137: 20 | K137: 0.39 | L137: 10 | M137: 22.8 | N137: 5.6 | O137: 0.6
A138: №174,2011 | B138: Каша кукурузная молочная с маслом 200/10г (крупа кукурузная 57г, молоко 100г, вода питьевая 65г, сахар 6, масло сливочное 10г) | C138: 200/10 | D138: 7.63 | E138: 11.1 | F138: 50.78 | G138: 334 | H138: 0.09 | I138: 0.96 | J138: 54.8 | K138: 0.4 | L138: 138.47 | M138: 153.61 | N138: 31.61 | O138: 1.68
A139: №378, 2011 | B139: Чай с сахаром и молоком 150/15/50г (чай 1г, вода 134г, сахар 15г, молоко 50г) | C139: 150/15/50 | D139: 1.52 | E139: 1.35 | F139: 15.9 | G139: 81 | H139: 0.04 | I139: 1.33 | J139: 10 | K139: 0 | L139: 126.6 | M139: 92.8 | N139: 15.4 | O139: 0.41
A140: ПР 2011 | B140: Хлеб ржано-пшеничный, 20г | C140: 20 | D140: 1.12 | E140: 0.22 | F140: 9.88 | G140: 45.98 | H140: 0.04 | I140: 0 | J140: 0 | K140: 0.18 | L140: 4.6 | M140: 21.2 | N140: 5 | O140: 0.62
B142: Всего | D142: =SUM(D137:D141) -> 12.67 | E142: =SUM(E137:E141) -> 16.54 | F142: 104.39 | G142: 616.98 | H142: 0.21 | I142: 2.39 | J142: 84.8 | K142: 0.97 | L142: 279.67 | M142: 290.41 | N142: 57.61 | O142: 3.31
B143: ОВЗ ОБЕД
A144: №46, 2011 | B144: Салат Синьор-помидор 60г (капуста белокачанная 27г, томаты 9г, яблоки 15г, лук репчатый 3г, сахар 3г, масло растительное 3г) | C144: 60 | D144: 0.12 | E144: 5.1 | F144: 11.17 | G144: 90.1 | H144: 0.03 | I144: 16.87 | J144: 0 | K144: 15.4 | L144: 33.49 | M144: 29.35 | N144: 16 | O144: 0.98
A145: №88, 2011 | B145: Щи из свежей капусты с картофелем 250г (капуста белокачанная 62,5г, картофель 40г, морковь 12,5г, лук репчатый 12г, соль йодированная 2,5г, масло растительное 5г, томатное пюре 2,5г, лавровый лист 0,01г) | C145: 250 | D145: 1.8 | E145: 4.98 | F145: 8.13 | G145: 84.48 | H145: 0.08 | I145: 18.48 | J145: 0 | K145: 2.38 | L145: 33.98 | M145: 47.43 | N145: 22.2 | O145: 0.83
A146: №295, 2011 | B146: Биточки рубленые из птицы с маслом 90/5г (куриные окорочка 118,8г, хлеб пшеничный 14,4г, вода питьевая 21,6г, внутренний жир 3,6г, сухари панировочные 9г, масло растительное 5,4г, масло сливочное 5г) | C146: 90/5 | D146: 14.13 | E146: 15.4 | F146: 12.73 | G146: 238.5 | H146: 0.07 | I146: 0.18 | J146: 54 | K146: 0.43 | L146: 41.76 | M146: 80.2 | N146: 23.4 | O146: 61.13
A147: №304, 2011 | B147: Рис отварной 150г (рис 51,8г, масло сливочное 6,8г, соль пищевая йодированная 1,5г) | C147: 150 | D147: 3.68 | E147: 5.45 | F147: 37.07 | G147: 212.05 | H147: 0.04 | I147: 0 | J147: 0.03 | K147: 0.3 | L147: 16.19 | M147: 80.87 | N147: 27.35 | O147: 0.58
A148: №342, 2004 | B148: Компот из вишни 200г (вишня свежезамороженая 20,6г, сахар 12г, вода питьевая 170г) | C148: 200 | D148: 0.21 | E148: 0.13 | F148: 26.86 | G148: 109.47 | H148: 0.01 | I148: 28 | J148: 0.02 | K148: 0.09 | L148: 8.96 | M148: 0 | N148: 5.83 | O148: 0.7
A149: ПР 2011 | B149: Хлеб пшеничный | C149: 30 | D149: 3.95 | E149: 0.5 | F149: 24.15 | G149: 116.9 | H149: 0.05 | I149: 0 | J149: 0 | K149: 0.65 | L149: 11.5 | M149: 43.5 | N149: 16.5 | O149: 0.55
A150: ПР 2011 | B150: Хлеб ржаной | C150: 30 | D150: 1.68 | E150: 0.33 | F150: 14.82 | G150: 68.97 | H150: 0.03 | I150: 0 | J150: 0 | K150: 0.27 | L150: 6.9 | M150: 31.8 | N150: 7.5 | O150: 0.93
B151: Всего | D151: =SUM(D144:D150) -> 25.57 | E151: =SUM(E144:E150) -> 31.89 | F151: 134.93 | G151: 920.47 | H151: 0.31 | I151: 63.53 | J151: 54.05 | K151: 19.52 | L151: 152.78 | M151: 313.15 | N151: 118.78 | O151: 65.7
B156: Итого за день | D156: =D155+D151+D142 -> 38.24 | E156: 48.43 | F156: 239.32 | G156: 1537.45 | H156: 0.52 | I156: 65.92 | J156: 138.85 | K156: 20.49 | L156: 432.45 | M156: 603.56 | N156: 176.39 | O156: 69.01
B157: 4 день 2 неделя
B158: ОВЗ ЗАВТРАК
A159: №3, 2011 | B159: Бутеброд с сыром и маслом на пшеничном хлебе 30/20/5г (хлеб пшеничный 30г, сыр Российский 20г, масло сливочное 5г) | C159: 30/20/ 5 | D159: 6.3 | E159: 9.13 | F159: 16.31 | G159: 172.7 | H159: 0.04 | I159: 0.11 | J159: 59 | K159: 0.47 | L159: 139.2 | M159: 96 | N159: 9.45 | O159: 0.49
A160: №247, 2013 | B160: Каша рисовая молочная вязкая с маслом сливочным 200/10г (крупа рисовая 44,4г, молоко 110г, вода 54г, сахар 5г, соль йодированнная 0,5г, масло сливочное 10г) | C160: 200/10 | D160: 6.38 | E160: 10.44 | F160: 37.11 | G160: 267.95 | H160: 0.08 | I160: 1.43 | J160: 0.05 | K160: 0.32 | L160: 143.33 | M160: 169.2 | N160: 38.37 | O160: 0.6
A161: №377, 2011 | B161: Чай с сахаром и лимоном 200/15/7г (чай 1г, вода питьевая 200г, сахар 15г, лимон 7г) | C161: 200/15/7 | D161: 0.13 | E161: 0.02 | F161: 15.25 | G161: 62 | H161: 0 | I161: 2.8 | J161: 0 | K161: 0 | L161: 14.2 | M161: 4.4 | N161: 2.4 | O161: 0.36
A162: ПР 2011 | B162: Хлеб ржаной | C162: 30 | D162: 1.12 | E162: 0.22 | F162: 9.88 | G162: 45.98 | H162: 0.04 | I162: 0 | J162: 0 | K162: 0.18 | L162: 4.6 | M162: 21.2 | N162: 5 | O162: 0.62
B163: Всего | D163: =SUM(D159:D162) -> 13.93 | E163: 19.81 | F163: 78.55 | G163: 548.63 | H163: 0.16 | I163: 4.34 | J163: 59.05 | K163: 0.97 | L163: 301.33 | M163: 290.8 | N163: 55.22 | O163: 2.07
B164: Всего | D164: =SUM(D159:D163) -> 27.86 | E164: 39.62 | F164: 157.1 | G164: 1097.26 | H164: 0.32 | I164: 8.68 | J164: 118.1 | K164: 1.94 | L164: 602.66 | M164: 581.6 | N164: 110.44 | O164: 4.14
B165: ОВЗ ОБЕД
A166: №54, 2011 | B166: Салат из свеклы с яблоком 60г (свекла отварная 48г, яблоко 8г, масло растительное 4г, соль поваренная пищевая йодированная 0,8г) | C166: 60 | D166: 0.65 | E166: 3.65 | F166: 6.72 | G166: 62.34 | H166: 0.01 | I166: 3.85 | J166: 0 | K166: 6.36 | L166: 17.56 | M166: 19.08 | N166: 10.1 | O166: 0.89
A167: №101, 2011 | B167: Суп картофельный с крупой (гречка) 250г (картофель 100г, морковь 12,5г, лук репчатый 12г, крупа гречневая 5г, масло растительное 2,5г, соль йодированная 2,5г, лавровый лист 0,01г) | C167: 250 | D167: 1.97 | E167: 2.71 | F167: 12.11 | G167: 85.75 | H167: 0.09 | I167: 8.25 | J167: 0 | K167: 1.22 | L167: 26.7 | M167: 55.97 | N167: 22.77 | O167: 0.87
A168: №227, 2011 | B168: Рыба припущеная (филе минтая 74г, лук репчатый 3г, коренья (петрушка или сельдерей)3г, соль 2г, масло сливочное 5г) | C168: 50/5 | D168: 8.56 | E168: 4.11 | F168: 0.46 | G168: 73 | H168: 0.06 | I168: 0.42 | J168: 24.5 | K168: 0.24 | L168: 7.73 | M168: 97.84 | N168: 22.92 | O168: 0.45
A169: №312, 2011 | B169: Пюре картофельное 150г (картофель 171г, молоко 23,7г, масло сливочное 5,25г, соль пищевая йодированная 1,5г) | C169: 150 | D169: 3.08 | E169: 2.33 | F169: 19.13 | G169: 109.73 | H169: 1.16 | I169: 3.75 | J169: 33.15 | K169: 0.15 | L169: 38.25 | M169: 76.95 | N169: 26.7 | O169: 0.86
A170: №349, 2011 | B170: Компот из смеси сухофруктов 200г (груша сушеная 10г, яблоко сушеное 10г, курага 10г, изюм 10г, чернослив 10г, сахар 15г, вода питьевая 100г) | C170: 200 | D170: 1.16 | E170: 0.3 | F170: 47.36 | G170: 196.38 | H170: 0.02 | I170: 0.8 | J170: 0 | K170: 0.2 | L170: 5.84 | M170: 46 | N170: 33 | O170: 0.96
A171: ПР 2011 | B171: Хлеб пшеничный | C171: 30 | D171: 3.55 | E171: 0.45 | F171: 21.73 | G171: 105.21 | H171: 0.045 | I171: 0 | J171: 0 | K171: 0.58 | L171: 10.35 | M171: 39.15 | N171: 14.85 | O171: 0.49
A172: ПР 2011 | B172: Хлеб ржаной | C172: 30 | D172: 1.68 | E172: 0.33 | F172: 14.82 | G172: 68.97 | H172: 0.03 | I172: 0 | J172: 0 | K172: 0.27 | L172: 6.9 | M172: 31.8 | N172: 7.5 | O172: 0.93
B173: Всего | D173: =SUM(D166:D172) -> 20.65 | E173: 13.88 | F173: 122.33 | G173: 701.38 | H173: 1.415 | I173: 17.07 | J173: 57.65 | K173: 9.02 | L173: 113.33 | M173: 366.79 | N173: 137.84 | O173: 5.45
B178: Итого за день | D178: =D177+D173+D164 -> 48.51 | E178: 53.5 | F178: 279.43 | G178: 1798.64 | H178: 1.735 | I178: 25.75 | J178: 175.75 | K178: 10.96 | L178: 715.99 | M178: 948.39 | N178: 248.28 | O178: 9.59
B179: 5 день 2 неделя
B180: ОВЗ ЗАВТРАК
A181: №440, 2015 | B181: Крендель сахарный 60г (мука пшеничная в/с 68,6г, сахар 5г, масло растительное 3,7г, яйцо 5,6г, дрожжи прессованные 1,3г, соль йодированная 0,5г) | C181: 60 | D181: 9.05 | E181: 6.22 | F181: 30.1 | G181: 212.61 | H181: 0.09 | I181: 0.15 | J181: 0.02 | K181: 2.28 | L181: 55.53 | M181: 109, 68 | N181: 14.54 | O181: 0.77
A182: №173, 2011 | B182: Каша вязкая молочная пшенная 200/10г (крупа пшенная 50г, молоко 100г, вода 60г, сахар 6г, масло сливочное 10г) | C182: 200/10 | D182: 8.64 | E182: 11.06 | F182: 44.32 | G182: 312 | H182: 0.14 | I182: 0.96 | J182: 54.8 | K182: 0.77 | L182: 146.77 | M182: 221.3 | N182: 44.33 | O182: 2.34
A183: №378, 2011 | B183: Чай с сахаром и молоком 150/15/50г (чай 1г, вода 134г, сахар 15г, молоко 50г) | C183: 150/15/50 | D183: 1.52 | E183: 1.35 | F183: 15.9 | G183: 81 | H183: 0.04 | I183: 1.33 | J183: 10 | K183: 0 | L183: 126.6 | M183: 92.8 | N183: 15.4 | O183: 0.41
A184: ПР 2011 | B184: Хлеб ржано-пшеничный, 20г | C184: 20 | D184: 1.12 | E184: 0.22 | F184: 9.88 | G184: 45.98 | H184: 0.04 | I184: 0 | J184: 0 | K184: 0.18 | L184: 4.6 | M184: 21.2 | N184: 5 | O184: 0.62
B185: Всего | D185: =SUM(D181:D184) -> 20.33 | E185: 18.85 | F185: 100.2 | G185: 651.59 | H185: 0.31 | I185: 2.44 | J185: 64.82 | K185: 3.23 | L185: 333.5 | M185: 335.3 | N185: 79.27 | O185: 4.14
B186: ОВЗ ОБЕД
A187: №46, 2011 | B187: Салат Весёлая мозаика 60г (капуста белокочанная 27г, морковь 9г, огурец свежий 15г, лук репчатый 3г, сахар 3г, масло растительное 3г, соль поваренная пищевая иодир. 0,8г) | C187: 60 | D187: 1.72 | E187: 8.46 | F187: 7.54 | G187: 113.1 | H187: 0.02 | I187: 6.88 | J187: 0.02 | K187: 0.15 | L187: 28.08 | M187: 37.76 | N187: 31.64 | O187: 1.07
A188: №82, 2011 | B188: Борщ с капустой и картофелем со сметаной 250/10г (свекла 50г, капуста белокачанная 25г, картофель 26,5г, морковь 12,5г, лук репчатый 12г, томатное пюре 7,5г, масло растительное 5г, соль йодированная 2,5г, сахар 2,5г, лавровый лист 0,01г, сметана 10г) | C188: 250/ 10 | D188: 2.07 | E188: 5.92 | F188: 20.47 | G188: 115.9 | H188: 0.05 | I188: 10.67 | J188: 0 | K188: 2.4 | L188: 49.72 | M188: 54.6 | N188: 26.12 | O188: 1.22
A189: №291 2011 | B189: Плов из птицы 150/90г (рис 44г,морковь 10г, лук репчатый 10г, томатное пюре 7,5г, филе куриное 112г , масло растительное 4,8г, соль йодированная 0,8г, ) | C189: 150/90 | D189: 16.45 | E189: 15.45 | F189: 20.84 | G189: 288 | H189: 0.09 | I189: 15.5 | J189: 18.9 | K189: 2.66 | L189: 49.8 | M189: 143.58 | N189: 90.98 | O189: 2.52
A190: №389, 2011 | B190: Сок натуральный яблочный, 200г | C190: 200 | D190: 1 | E190: 0.2 | F190: 22 | G190: 86.6 | H190: 0.02 | I190: 4 | J190: 0 | K190: 0.2 | L190: 14 | M190: 14 | N190: 8 | O190: 2.8
A191: ПР 2011 | B191: Хлеб пшеничный | C191: 30 | D191: 3.95 | E191: 0.5 | F191: 24.15 | G191: 116.9 | H191: 0.05 | I191: 0 | J191: 0 | K191: 0.65 | L191: 11.5 | M191: 43.5 | N191: 16.5 | O191: 0.55
A192: ПР 2011 | B192: Хлеб ржаной | C192: 30 | D192: 1.68 | E192: 0.33 | F192: 14.82 | G192: 68.97 | H192: 0.03 | I192: 0 | J192: 0 | K192: 0.27 | L192: 6.9 | M192: 31.8 | N192: 7.5 | O192: 0.93
B193: Всего | D193: =SUM(D187:D192) -> 26.87 | E193: 30.86 | F193: 109.82 | G193: 789.47 | H193: 0.26 | I193: 37.05 | J193: 18.92 | K193: 6.33 | L193: 160 | M193: 325.24 | N193: 180.74 | O193: 9.09
B198: Итого за день | D198: =D197+D193+D185 -> 47.2 | E198: 49.71 | F198: 210.02 | G198: 1441.06 | H198: 0.57 | I198: 39.49 | J198: 83.74 | K198: 9.56 | L198: 493.5 | M198: 660.54 | N198: 260.01 | O198: 13.23
A199: Зам.директора по производству__________________________________Кащавцева Н.Ю.
A200: Заведующий производством ______________________________Смолина Л.Н.

Sheet Лист2

Sheet Лист3
